lending/lending_fUSD_20240411
["ID","MTS","AMOUNT","RATE_DAILY","PERIOD"]
[322187853,1712867447810,-500.0,0.00027671,2]
[322187854,1712867447821,-791.65,0.00027671,2]
[322187855,1712867447832,-500.0,0.00027671,2]
[322187856,1712867447842,-603.86451577,0.00027671,2]
[322187857,1712867447851,-500.0,0.00027671,2]
[322187858,1712867447861,-1361.19,0.00027671,2]
[322187859,1712867447872,-945.38,0.00027671,2]
[322187860,1712867447882,-643.89,0.00027671,2]
[322187861,1712867447891,-500.0,0.00027671,2]
[322187862,1712867447902,-1748.62,0.00027671,2]
[322187863,1712867447912,-538.07730627,0.00027671,2]
[322187864,1712867447921,-516.37,0.00027671,2]
[322187865,1712867447931,-500.0,0.00027671,2]
[322187866,1712867447942,-500.0,0.00027671,2]
[322187867,1712867447953,-729.25,0.00027671,2]
[322187868,1712867447964,-328.15875471,0.00027671,2]
[322187869,1712867447975,-500.0,0.00027671,2]
[322187870,1712867447984,-1281.83,0.00027671,2]
[322187871,1712867447996,-1484.45,0.00027671,2]
[322187872,1712867448007,-500.0,0.00027671,2]
[322187873,1712867448020,-616.47001853,0.00027671,2]
[322187874,1712867448032,-500.0,0.00027671,2]
[322187875,1712867448041,-500.0,0.00027671,2]
[322187876,1712867448050,-500.0,0.00027671,2]
[322187877,1712867448061,-882.78,0.00027671,2]
[322187878,1712867448072,-500.0,0.00027671,2]
[322187879,1712867448082,-500.0,0.00027671,2]
[322187880,1712867448092,-500.0,0.00027671,2]
[322187881,1712867448102,-500.0,0.00027671,2]
[322187882,1712867448113,-921.03,0.00027671,2]
[322187883,1712867448125,-829.15,0.00027671,2]
[322187884,1712867448135,-500.0,0.00027671,2]
[322187885,1712867448146,-500.0,0.00027671,2]
[322187886,1712867448155,-2566.3,0.00027671,2]
[322187887,1712867448165,-1077.51,0.00027671,2]
[322187888,1712867448174,-840.25,0.00027671,2]
[322187889,1712867448184,-885.53,0.00027671,2]
[322187890,1712867448193,-500.0,0.00027671,2]
[322187891,1712867448203,-500.0,0.00027671,2]
[322187892,1712867448212,-500.0,0.00027671,2]
[322187893,1712867448221,-941.92,0.00027671,2]
[322187894,1712867448230,-500.0,0.00027671,2]
[322187895,1712867448240,-3316.35,0.00027671,2]
[322187896,1712867448249,-560.04829344,0.00027671,2]
[322187897,1712867448258,-814.36,0.00027671,2]
[322187898,1712867448268,-7207.69,0.00027671,2]
[322187899,1712867448277,-1149.74,0.00027671,2]
[322187900,1712867448287,-500.0,0.00027671,2]
[322187901,1712867448296,-602.99,0.00027671,2]
[322187902,1712867448306,-886.11,0.00027671,2]
[322187903,1712867448315,-665.07,0.00027671,2]
[322187904,1712867448324,-1016.21,0.00027671,2]
[322187905,1712867448333,-5744.79,0.00027671,2]
[322187906,1712867448347,-2175.29,0.00027671,2]
[322187907,1712867448357,-759.35,0.00027671,2]
[322187908,1712867448367,-1741.25,0.00027671,2]
[322187909,1712867448376,-3488.69,0.00027671,2]
[322187910,1712867448386,-500.0,0.00027671,2]
[322187911,1712867448395,-1728.63,0.00027671,2]
[322187912,1712867448405,-500.0,0.00027671,2]
[322187913,1712867448414,-2206.53,0.00027671,2]
[322187914,1712867448424,-500.0,0.00027671,2]
[322187915,1712867448434,-500.0,0.00027671,2]
[322187916,1712867448443,-4939.06,0.00027671,2]
[322187917,1712867448452,-903.44,0.00027671,2]
[322187918,1712867448462,-569.39,0.00027671,2]
[322187919,1712867448474,-2854.87,0.00027671,2]
[322187920,1712867448483,-1251.52,0.00027671,2]
[322187921,1712867448492,-1238.33,0.00027671,2]
[322187922,1712867448502,-1377.33,0.00027671,2]
[322187923,1712867448511,-500.0,0.00027671,2]
[322187924,1712867448521,-500.0,0.00027671,2]
[322187925,1712867448530,-2762.86,0.00027671,2]
[322187926,1712867448538,-2031.68,0.00027671,2]
[322187927,1712867448549,-4951.25,0.00027671,2]
[322187928,1712867448559,-1407.86,0.00027671,2]
[322187929,1712867448568,-500.0,0.00027671,2]
[322187930,1712867448578,-1127.31,0.00027671,2]
[322187931,1712867448588,-500.0,0.00027671,2]
[322187932,1712867448598,-543.84,0.00027671,2]
[322187933,1712867448608,-500.0,0.00027671,2]
[322187934,1712867448618,-1423.87,0.00027671,2]
[322187935,1712867448628,-1790.86,0.00027671,2]
[322187936,1712867448637,-561.84,0.00027671,2]
[322187937,1712867448647,-8701.03,0.00027671,2]
[322187938,1712867448659,-500.0,0.00027671,2]
[322187939,1712867448672,-500.0,0.00027671,2]
[322187940,1712867448681,-1108.55,0.00027671,2]
[322187941,1712867448693,-500.0,0.00027671,2]
[322187942,1712867448704,-1576.12,0.00027671,2]
[322187943,1712867448714,-7253.01,0.00027671,2]
[322187944,1712867448724,-500.0,0.00027671,2]
[322187945,1712867448735,-1033.59,0.00027671,2]
[322187946,1712867448745,-45059.41,0.00027671,2]
[322187947,1712867448756,-594.03,0.00027671,2]
[322187948,1712867448766,-11292.75,0.00027671,2]
[322187949,1712867448776,-4960.81,0.00027671,2]
[322187950,1712867448786,-767.19,0.00027671,2]
[322187951,1712867448797,-948.27,0.00027671,2]
[322187952,1712867448809,-1477.61,0.00027671,2]
[322187953,1712867448819,-3190.26,0.00027671,2]
[322187954,1712867448829,-535.56,0.00027671,2]
[322187955,1712867448839,-500.0,0.00027671,2]
[322187956,1712867448848,-2643.54,0.00027671,2]
[322187957,1712867448858,-10523.15,0.00027671,2]
[322187958,1712867448869,-2247.53,0.00027671,2]
[322187959,1712867448880,-500.0,0.00027671,2]
[322187960,1712867448890,-1391.72,0.00027671,2]
[322187961,1712867448902,-500.0,0.00027671,2]
[322187962,1712867448911,-2136.22,0.00027671,2]
[322187963,1712867448921,-500.0,0.00027671,2]
[322187964,1712867448931,-8306.64,0.00027671,2]
[322187965,1712867448941,-2689.98,0.00027671,2]
[322187966,1712867448951,-623.76,0.00027671,2]
[322187967,1712867448962,-5108.44,0.00027671,2]
[322187968,1712867448972,-981.96,0.00027671,2]
[322187969,1712867448981,-2048.45,0.00027671,2]
[322187970,1712867448991,-1307.66,0.00027671,2]
[322187971,1712867449002,-500.0,0.00027671,2]
[322187972,1712867449013,-255.98618751,0.00027671,2]
[322187973,1712867449024,-3912.28,0.00027671,2]
[322187974,1712867449040,-1026.11,0.00027671,2]
[322187975,1712867449056,-500.0,0.00027671,2]
[322187976,1712867449065,-833.0,0.00027671,2]
[322187977,1712867449075,-1599.07,0.00027671,2]
[322187978,1712867449085,-2633.61,0.00027671,2]
[322187979,1712867449094,-2930.86,0.00027671,2]
[322187980,1712867449105,-500.0,0.00027671,2]
[322187981,1712867449115,-2238.13,0.00027671,2]
[322187982,1712867449126,-2651.69,0.00027671,2]
[322187983,1712867449135,-2311.62,0.00027671,2]
[322187984,1712867449145,-5405.21,0.00027671,2]
[322187985,1712867449154,-700.69,0.00027671,2]
[322187986,1712867449164,-2643.62,0.00027671,2]
[322187987,1712867449173,-1089.15,0.00027671,2]
[322187988,1712867449182,-1382.04,0.00027671,2]
[322187989,1712867449193,-1226.83,0.00027671,2]
[322187990,1712867449204,-500.0,0.00027671,2]
[322187991,1712867449214,-2093.53,0.00027671,2]
[322187992,1712867449223,-2058.33,0.00027671,2]
[322187993,1712867449234,-1710.88,0.00027671,2]
[322187994,1712867449243,-500.0,0.00027671,2]
[322187995,1712867449254,-880.19,0.00027671,2]
[322187996,1712867449264,-847.87,0.00027671,2]
[322187997,1712867449274,-5966.798125,0.00027671,2]
[322187998,1712867450016,-3757.421875,0.00027671,2]
[322187999,1712867450026,-21675.68,0.00027671,2]
[322188000,1712867450036,-642.09,0.00027671,2]
[322188001,1712867450045,-769.81,0.00027671,2]
[322188002,1712867450055,-1979.15,0.00027671,2]
[322188003,1712867450065,-1373.89,0.00027671,2]
[322188004,1712867450075,-4375.9,0.00027671,2]
[322188005,1712867450086,-2723.9,0.00027671,2]
[322188006,1712867450096,-500.0,0.00027671,2]
[322188007,1712867450106,-585.34,0.00027671,2]
[322188008,1712867450116,-3708.66,0.00027671,2]
[322188009,1712867450126,-751.69,0.00027671,2]
[322188010,1712867450135,-3133.07,0.00027671,2]
[322188011,1712867450145,-2354.05,0.00027671,2]
[322188012,1712867450154,-950.63,0.00027671,2]
[322188013,1712867450164,-2610.98,0.00027671,2]
[322188014,1712867450173,-500.0,0.00027671,2]
[322188015,1712867450183,-3220.82,0.00027671,2]
[322188016,1712867450192,-500.0,0.00027671,2]
[322188017,1712867450202,-2135.35,0.00027671,2]
[322188018,1712867450211,-500.0,0.00027671,2]
[322188019,1712867450220,-500.0,0.00027671,2]
[322188020,1712867450230,-464.06251496,0.00027671,2]
[322188021,1712867450247,-368.48748504,0.00027671,2]
[322188022,1712867450256,-2049.10939733,0.00027671,2]
[322188023,1712867450268,-658.25,0.00027671,2]
[322188024,1712867450288,-4771.87060267,0.00027671,2]
[322188025,1712867450298,-500.0,0.00027671,2]
[322188026,1712867450308,-258.33640694,0.00027671,2]
[322188027,1712867450319,-398.38916355,0.00027671,2]
[322188028,1712867450332,-460.43123519,0.00027671,2]
[322188029,1712867450347,-3366.04319432,0.00027671,2]
[322188030,1712867450357,-955.09944016,0.00027671,2]
[322188031,1712867452044,-3466.66028671,0.00027195,2]
[322188032,1712867452056,-6882.98331787,0.00027195,2]
[322188033,1712867452067,-53038.14192843,0.00027195,2]
[322188034,1712867452079,-9860.33139325,0.00027195,2]
[322188035,1712867452090,-1571.2760012,0.00027195,2]
[322188036,1712867452102,-74503.89557254,0.00027195,2]
[322188037,1712867452112,-156.74977533,0.00027285,2]
[322188038,1712867452121,-154.04295662,0.00027397,2]
[322188039,1712867452130,-859.87,0.00027397,2]
[322188040,1712867452139,-500.0,0.00027397,2]
[322188041,1712867452149,-995.5845534,0.00027603,2]
[322188042,1712867452158,-472.95055984,0.00027671,2]
[322188043,1712867452167,-1762.59,0.00027671,2]
[322188044,1712867452175,-2545.7,0.00027671,2]
[322188045,1712867452185,-500.0,0.00027671,2]
[322188046,1712867452194,-1220.85,0.00027671,2]
[322188047,1712867452203,-2856.97,0.00027671,2]
[322188048,1712867452212,-500.0,0.00027671,2]
[322188049,1712867452221,-500.0,0.00027671,2]
[322188050,1712867452230,-500.0,0.00027671,2]
[322188051,1712867452239,-2970.94,0.00027671,2]
[322188052,1712867452248,-781.28,0.00027671,2]
[322188053,1712867452257,-500.0,0.00027671,2]
[322188054,1712867452266,-1713.54,0.00027671,2]
[322188055,1712867452274,-500.0,0.00027671,2]
[322188056,1712867452284,-847.8,0.00027671,2]
[322188057,1712867452293,-4514.4,0.00027671,2]
[322188058,1712867452302,-1336.56,0.00027671,2]
[322188059,1712867452312,-12203.68928265,0.00027671,2]
[322188060,1712867452324,-13192.46071735,0.00027671,2]
[322188061,1712867452333,-13709.84,0.00027671,2]
[322188062,1712867452343,-500.0,0.00027671,2]
[322188063,1712867452352,-1285.78,0.00027671,2]
[322188064,1712867452362,-2829.24,0.00027671,2]
[322188065,1712867452371,-1663.17,0.00027671,2]
[322188066,1712867452380,-12812.92,0.00027671,2]
[322188067,1712867452389,-1342.03,0.00027671,2]
[322188068,1712867452398,-934.94,0.00027671,2]
[322188069,1712867452407,-6132.15,0.00027671,2]
[322188070,1712867452416,-1011.13,0.00027671,2]
[322188071,1712867452425,-500.0,0.00027671,2]
[322188072,1712867452434,-3947.53,0.00027671,2]
[322188073,1712867452443,-2592.0,0.00027671,2]
[322188074,1712867452452,-1486.69,0.00027671,2]
[322188075,1712867452461,-1106.06,0.00027671,2]
[322188076,1712867452470,-6485.02,0.00027671,2]
[322188077,1712867452480,-6846.22,0.00027671,2]
[322188078,1712867452489,-500.0,0.00027671,2]
[322188079,1712867452498,-1431.63,0.00027671,2]
[322188080,1712867452508,-500.0,0.00027671,2]
[322188081,1712867452518,-5878.31,0.00027671,2]
[322188082,1712867452527,-4545.5,0.00027671,2]
[322188083,1712867452536,-662.12,0.00027671,2]
[322188084,1712867452545,-1509.53066064,0.00027671,2]
[322188085,1712867452562,-1365.0586468,0.00027671,2]
[322188086,1712867452576,-554.31069256,0.00027671,2]
[322188087,1712867452585,-566.42185628,0.00027671,2]
[322188088,1712867452596,-976.83814372,0.00027671,2]
[322188089,1712867452605,-1045.85676648,0.00027671,2]
[322188090,1712867452616,-729.82228752,0.00027671,2]
[322188091,1712867452627,-1659.140946,0.00027671,2]
[322188092,1712867452636,-1070.32,0.00027671,2]
[322188093,1712867452645,-2366.08,0.00027671,2]
[322188094,1712867452654,-4269.08,0.00027671,2]
[322188095,1712867452665,-2149.44,0.00027671,2]
[322188096,1712867452674,-1852.92,0.00027671,2]
[322188097,1712867452684,-3446.29,0.00027671,2]
[322188098,1712867452694,-544.99,0.00027671,2]
[322188099,1712867452705,-995.75,0.00027671,2]
[322188100,1712867452714,-500.0,0.00027671,2]
[322188101,1712867452724,-5122.61,0.00027671,2]
[322188102,1712867452733,-500.0,0.00027671,2]
[322188103,1712867452743,-1095.9,0.00027671,2]
[322188104,1712867452752,-1180.54,0.00027671,2]
[322188105,1712867452761,-1544.29,0.00027671,2]
[322188106,1712867452771,-500.0,0.00027671,2]
[322188107,1712867452781,-500.0,0.00027671,2]
[322188108,1712867452790,-2401.1,0.00027671,2]
[322188109,1712867452800,-1832.36,0.00027671,2]
[322188110,1712867452816,-2161.16,0.00027671,2]
[322188111,1712867452826,-752.19160585,0.00027671,2]
[322188112,1712867452839,-481.54839415,0.00027671,2]
[322188113,1712867452849,-500.0,0.00027671,2]
[322188114,1712867452859,-857.09,0.00027671,2]
[322188115,1712867452870,-5080.68,0.00027671,2]
[322188116,1712867452879,-622.06,0.00027671,2]
[322188117,1712867452889,-500.0,0.00027671,2]
[322188118,1712867452899,-2317.05,0.00027671,2]
[322188119,1712867452908,-500.0,0.00027671,2]
[322188120,1712867452917,-500.0,0.00027671,2]
[322188121,1712867452926,-848.59,0.00027671,2]
[322188122,1712867452935,-2607.17968704,0.00027671,2]
[322188123,1712867452947,-7144.4,0.00027671,2]
[322188124,1712867452959,-3662.97139362,0.00027671,2]
[322188125,1712867452970,-1325.81220542,0.00027671,2]
[322188126,1712867452982,-6750.99671392,0.00027671,2]
[322188127,1712867452991,-3192.1,0.00027671,2]
[322188128,1712867453000,-500.0,0.00027671,2]
[322188129,1712867453009,-2961.37,0.00027671,2]
[322188130,1712867453018,-1345.8,0.00027671,2]
[322188131,1712867453028,-748.46,0.00027671,2]
[322188132,1712867453037,-1809.68,0.00027671,2]
[322188133,1712867453046,-500.0,0.00027671,2]
[322188134,1712867453057,-4954.31,0.00027671,2]
[322188135,1712867453066,-701.0,0.00027671,2]
[322188136,1712867453074,-500.0,0.00027671,2]
[322188137,1712867453084,-500.0,0.00027671,2]
[322188138,1712867453094,-699.32,0.00027671,2]
[322188139,1712867453103,-1534.33,0.00027671,2]
[322188140,1712867453112,-500.0,0.00027671,2]
[322188141,1712867453121,-2539.82,0.00027671,2]
[322188142,1712867453130,-500.0,0.00027671,2]
[322188143,1712867453139,-841.46,0.00027671,2]
[322188144,1712867453148,-877.83,0.00027671,2]
[322188145,1712867453157,-1784.53,0.00027671,2]
[322188146,1712867453166,-1297.45,0.00027671,2]
[322188147,1712867453177,-3680.38,0.00027671,2]
[322188148,1712867453186,-500.0,0.00027671,2]
[322188149,1712867453196,-500.0,0.00027671,2]
[322188150,1712867453205,-500.0,0.00027671,2]
[322188151,1712867453215,-815.85,0.00027671,2]
[322188152,1712867453225,-500.0,0.00027671,2]
[322188153,1712867453235,-688.79094408,0.00027671,2]
[322188154,1712867453249,-343.78905592,0.00027671,2]
[322188155,1712867453259,-2592.31048832,0.00027671,2]
[322188156,1712867453868,-3308.86,0.00027397,2]
[322188157,1712867453877,-500.0,0.00027397,2]
[322188158,1712867453886,-500.0,0.00027397,2]
[322188159,1712867453896,-500.0,0.00027397,2]
[322188160,1712867453908,-500.0,0.00027397,2]
[322188161,1712867453918,-2550.76951168,0.00027671,2]
[322188162,1712867453927,-500.0,0.00027671,2]
[322188163,1712867453937,-759.6,0.00027671,2]
[322188164,1712867453948,-500.0,0.00027671,2]
[322188165,1712867453957,-1039.2,0.00027671,2]
[322188166,1712867453968,-3194.11,0.00027671,2]
[322188167,1712867453977,-500.0,0.00027671,2]
[322188168,1712867453986,-1198.2817252,0.00027671,2]
[322188169,1712867453999,-529.39443339,0.00027671,2]
[322188170,1712867454010,-348.87078644,0.00027671,2]
[322188171,1712867454021,-1911.97305497,0.00027671,2]
[322188172,1712867454031,-500.0,0.00027671,2]
[322188173,1712867454041,-500.0,0.00027671,2]
[322188174,1712867454051,-500.0,0.00027671,2]
[322188175,1712867454062,-107.21975913,0.00027671,2]
[322188176,1712867454074,-3164.72024087,0.00027671,2]
[322188177,1712867454083,-500.0,0.00027671,2]
[322188178,1712867454093,-529.12,0.00027671,2]
[322188179,1712867454103,-500.0,0.00027671,2]
[322188180,1712867454113,-1924.89,0.00027671,2]
[322188181,1712867454123,-439.56975913,0.00027671,2]
[322188182,1712867454141,-579.46024087,0.00027671,2]
[322188183,1712867454151,-133.94975913,0.00027671,2]
[322188184,1712867454163,-666.17653099,0.00027671,2]
[322188185,1712867455095,-500.0,0.00027397,2]
[322188186,1712867455106,-500.0,0.00027397,2]
[322188187,1712867455126,-59.74370988,0.00027671,2]
[322188188,1712867455137,-3308.86,0.00027671,2]
[322188189,1712867455146,-500.0,0.00027671,2]
[322188190,1712867455156,-381.06,0.00027671,2]
[322188191,1712867455166,-225.50589324,0.00027671,2]
[322188192,1712867455180,-274.49410676,0.00027671,2]
[322188193,1712867455190,-500.0,0.00027671,2]
[322188194,1712867455199,-150.249129,0.00027671,14]
[322188195,1712867455210,-218.688788,0.00027719,2]
[322188196,1712867455222,-104.39697034,0.00027719,2]
[322188197,1712867455232,-2960.0,0.000279,2]
[322188198,1712867455241,-500.0,0.00027944,2]
[322188199,1712867455251,-500.0,0.00027944,2]
[322188200,1712867455261,-500.0,0.00027944,2]
[322188201,1712867455271,-519.77048603,0.00027944,2]
[322188202,1712867455280,-500.0,0.00027945,2]
[322188203,1712867455290,-500.0,0.00027945,2]
[322188204,1712867455299,-500.0,0.00027945,2]
[322188205,1712867455313,-500.0,0.00027945,2]
[322188206,1712867455323,-500.0,0.00027945,2]
[322188207,1712867455333,-506.13,0.00027945,2]
[322188208,1712867455342,-500.0,0.00027945,2]
[322188209,1712867455352,-500.0,0.00027945,2]
[322188210,1712867455361,-500.0,0.00027945,2]
[322188211,1712867455371,-500.0,0.00027945,2]
[322188212,1712867455381,-500.0,0.00027945,2]
[322188213,1712867455390,-540.08,0.00027945,2]
[322188214,1712867455400,-500.0,0.00027945,2]
[322188215,1712867455410,-500.0,0.00027945,2]
[322188216,1712867455420,-500.0,0.00027945,2]
[322188217,1712867455430,-738.92,0.00027945,2]
[322188218,1712867455439,-500.0,0.00027945,2]
[322188219,1712867455449,-500.0,0.00027945,2]
[322188220,1712867455459,-500.0,0.00027945,2]
[322188221,1712867455470,-722.89,0.00027945,2]
[322188222,1712867455479,-500.0,0.00027945,2]
[322188223,1712867455489,-500.0,0.00027945,2]
[322188224,1712867455500,-572.75665922,0.00027945,2]
[322188225,1712867455510,-500.0,0.00027945,2]
[322188226,1712867455520,-500.0,0.00027945,2]
[322188227,1712867455529,-500.0,0.00027945,2]
[322188228,1712867455539,-500.0,0.00027945,2]
[322188229,1712867455549,-500.0,0.00027945,2]
[322188230,1712867455561,-500.0,0.00027945,2]
[322188231,1712867455571,-601.33,0.00027945,2]
[322188232,1712867455581,-500.0,0.00027945,2]
[322188233,1712867455591,-500.0,0.00027945,2]
[322188234,1712867455601,-500.0,0.00027945,2]
[322188235,1712867455613,-606.98080009,0.00027945,2]
[322188236,1712867455624,-500.0,0.00027945,2]
[322188237,1712867455635,-500.0,0.00027945,2]
[322188238,1712867455647,-500.0,0.00027945,2]
[322188239,1712867455662,-500.0,0.00027945,2]
[322188240,1712867455672,-500.0,0.00027945,2]
[322188241,1712867455682,-517.07796219,0.00027945,2]
[322188242,1712867455693,-548.24,0.00027945,2]
[322188243,1712867455703,-500.0,0.00027945,2]
[322188244,1712867455714,-500.0,0.00027945,2]
[322188245,1712867455725,-500.0,0.00027945,2]
[322188246,1712867455736,-500.0,0.00027945,2]
[322188247,1712867455746,-500.0,0.00027945,2]
[322188248,1712867455757,-500.0,0.00027945,2]
[322188249,1712867455767,-398.3040009,0.00027945,2]
[322188250,1712867455778,-500.0,0.00027945,2]
[322188251,1712867455789,-500.0,0.00027945,2]
[322188252,1712867455799,-500.0,0.00027945,2]
[322188253,1712867455817,-500.0,0.00027945,2]
[322188254,1712867455829,-500.0,0.00027945,2]
[322188255,1712867455841,-500.0,0.00027945,2]
[322188256,1712867455851,-500.0,0.00027945,2]
[322188257,1712867455862,-500.0,0.00027945,2]
[322188258,1712867455873,-500.0,0.00027945,2]
[322188259,1712867455883,-500.0,0.00027945,2]
[322188260,1712867455895,-500.0,0.00027945,2]
[322188261,1712867455905,-509.8,0.00027945,2]
[322188262,1712867455916,-500.0,0.00027945,2]
[322188263,1712867455927,-500.0,0.00027945,2]
[322188264,1712867455939,-500.0,0.00027945,2]
[322188265,1712867455949,-500.0,0.00027945,2]
[322188266,1712867455960,-544.92,0.00027945,2]
[322188267,1712867455972,-500.0,0.00027945,2]
[322188268,1712867455982,-532.74,0.00027945,2]
[322188269,1712867455996,-500.0,0.00027945,2]
[322188270,1712867456007,-500.0,0.00027945,2]
[322188271,1712867456018,-500.0,0.00027945,2]
[322188272,1712867456028,-500.0,0.00027945,2]
[322188273,1712867456040,-500.0,0.00027945,2]
[322188274,1712867456050,-500.0,0.00027945,2]
[322188275,1712867456063,-500.0,0.00027945,2]
[322188276,1712867456073,-500.0,0.00027945,2]
[322188277,1712867456083,-500.0,0.00027945,2]
[322188278,1712867456093,-500.0,0.00027945,2]
[322188279,1712867456103,-500.0,0.00027945,2]
[322188280,1712867456114,-887.21,0.00027945,2]
[322188281,1712867456125,-500.0,0.00027945,2]
[322188282,1712867456135,-434.0428835,0.00027945,2]
[322188283,1712867456146,-500.0,0.00027945,2]
[322188284,1712867456158,-300.0,0.00027945,2]
[322188285,1712867456168,-500.0,0.00027945,2]
[322188286,1712867456179,-500.0,0.00027945,2]
[322188287,1712867456190,-990.85,0.00027945,2]
[322188288,1712867456200,-174.53670769,0.00027945,2]
[322188289,1712867456210,-500.0,0.00027945,2]
[322188290,1712867456221,-500.0,0.00027945,2]
[322188291,1712867456231,-500.0,0.00027945,2]
[322188292,1712867456241,-150.0,0.00027945,2]
[322188293,1712867456252,-620.93,0.00027945,2]
[322188294,1712867456262,-500.0,0.00027945,2]
[322188295,1712867456273,-500.0,0.00027945,2]
[322188296,1712867456283,-500.0,0.00027945,2]
[322188297,1712867456294,-500.0,0.00027945,2]
[322188298,1712867456304,-500.0,0.00027945,2]
[322188299,1712867456315,-500.0,0.00027945,2]
[322188300,1712867456325,-500.0,0.00027945,2]
[322188301,1712867456336,-500.0,0.00027945,2]
[322188302,1712867456346,-297.50717666,0.00027945,2]
[322188303,1712867456356,-622.93,0.00027945,2]
[322188304,1712867456367,-265.77117395,0.00027945,2]
[322188305,1712867456377,-500.0,0.00027945,2]
[322188306,1712867456388,-500.0,0.00027945,2]
[322188307,1712867456398,-500.0,0.00027945,2]
[322188308,1712867456409,-500.0,0.00027945,2]
[322188309,1712867456419,-500.0,0.00027945,2]
[322188310,1712867456429,-500.0,0.00027945,2]
[322188311,1712867456440,-500.0,0.00027945,2]
[322188312,1712867456450,-500.0,0.00027945,2]
[322188313,1712867456460,-500.0,0.00027945,2]
[322188314,1712867456470,-500.0,0.00027945,2]
[322188315,1712867456480,-668.04,0.00027945,2]
[322188316,1712867456490,-742.31,0.00027945,2]
[322188317,1712867456504,-500.0,0.00027945,2]
[322188318,1712867456515,-500.0,0.00027945,2]
[322188319,1712867456525,-965.5,0.00027945,2]
[322188320,1712867456536,-500.0,0.00027945,2]
[322188321,1712867456546,-500.0,0.00027945,2]
[322188322,1712867456558,-500.0,0.00027945,2]
[322188323,1712867456569,-476.24442736,0.00027945,2]
[322188324,1712867456589,-23.75557264,0.00027945,2]
[322188325,1712867456600,-500.0,0.00027945,2]
[322188326,1712867456610,-945.95,0.00027945,2]
[322188327,1712867456621,-500.0,0.00027945,2]
[322188328,1712867456631,-500.0,0.00027945,2]
[322188329,1712867456642,-583.56,0.00027945,2]
[322188330,1712867456652,-490.92761754,0.00027945,2]
[322188331,1712867456667,-9.07238246,0.00027945,2]
[322188332,1712867456677,-500.0,0.00027945,2]
[322188333,1712867456688,-1002.15,0.00027945,2]
[322188334,1712867456698,-421.47364113,0.00027945,2]
[322188335,1712867456712,-97.98635887,0.00027945,2]
[322188336,1712867456723,-556.71,0.00027945,2]
[322188337,1712867456734,-500.0,0.00027945,2]
[322188338,1712867456745,-500.0,0.00027945,2]
[322188339,1712867456755,-500.0,0.00027945,2]
[322188340,1712867456765,-26.12425226,0.00027945,2]
[322188341,1712867456785,-607.97574774,0.00027945,2]
[322188342,1712867456795,-500.0,0.00027945,2]
[322188343,1712867456805,-390.1510191,0.00027945,2]
[322188344,1712867456819,-109.8489809,0.00027945,2]
[322188345,1712867456829,-500.0,0.00027945,2]
[322188346,1712867456839,-559.63,0.00027945,2]
[322188347,1712867456849,-628.42,0.00027945,2]
[322188348,1712867456860,-1123.24,0.00027945,2]
[322188349,1712867456870,-500.0,0.00027945,2]
[322188350,1712867456880,-500.0,0.00027945,2]
[322188351,1712867456890,-500.0,0.00027945,2]
[322188352,1712867456901,-500.0,0.00027945,2]